[Event "*** SCC Grand Prix: Titled Tuesday Blitz"]
[Site "Chess.com"]
[Date "2020.08.25"]
[Round "8"]
[White "BakaPG"]
[Black "Kavyev_Ruslan"]
[Result "1-0"]
[WhiteElo "2684"]
[BlackElo "2495"]
[TimeControl "180+1"]
[EndTime "11:36:59 PDT"]
[Termination "BakaPG won by resignation"]

1. e4 {[%clk 0:03:00.9]} 1... c5 {[%clk 0:03:00.1]} 2. Nf3 {[%clk 0:02:59.8]}
2... d6 {[%clk 0:03:00.7]} 3. d4 {[%clk 0:02:59.7]} 3... cxd4 {[%clk 0:03:01.6]}
4. Nxd4 {[%clk 0:03:00.1]} 4... Nf6 {[%clk 0:03:02.5]} 5. Nc3 {[%clk 0:02:59.9]}
5... a6 {[%clk 0:03:03.2]} 6. Be3 {[%clk 0:02:58.7]} 6... e5 {[%clk 0:03:03]} 7.
Nb3 {[%clk 0:02:58.2]} 7... Be6 {[%clk 0:03:01.6]} 8. Qd2 {[%clk 0:02:57.9]}
8... Nbd7 {[%clk 0:02:58.1]} 9. f3 {[%clk 0:02:55]} 9... h5 {[%clk 0:02:56.8]}
10. Nd5 {[%clk 0:02:53.2]} 10... Bxd5 {[%clk 0:02:52.1]} 11. exd5 {[%clk
0:02:53.8]} 11... g6 {[%clk 0:02:50.5]} 12. c4 {[%clk 0:02:29.3]} 12... Bg7
{[%clk 0:02:46.4]} 13. Be2 {[%clk 0:02:25.4]} 13... O-O {[%clk 0:02:43.8]} 14.
O-O {[%clk 0:02:23.4]} 14... b6 {[%clk 0:02:39.3]} 15. Kh1 {[%clk 0:02:17.6]}
15... a5 {[%clk 0:02:38.3]} 16. Rac1 {[%clk 0:02:16.8]} 16... Re8 {[%clk
0:02:29.8]} 17. g3 {[%clk 0:02:13.2]} 17... Kh7 {[%clk 0:02:26.2]} 18. Na1
{[%clk 0:02:10.5]} 18... e4 {[%clk 0:02:23.4]} 19. f4 {[%clk 0:02:09.8]} 19...
Ng4 {[%clk 0:02:23.9]} 20. Bxg4 {[%clk 0:02:06.4]} 20... hxg4 {[%clk 0:02:24.8]}
21. b3 {[%clk 0:01:52]} 21... f5 {[%clk 0:02:24.3]} 22. Nc2 {[%clk 0:01:51]}
22... Nc5 {[%clk 0:02:23.5]} 23. Nd4 {[%clk 0:01:49]} 23... Qf6 {[%clk
0:02:17.2]} 24. Rb1 {[%clk 0:01:42.4]} 24... Nd3 {[%clk 0:02:03.1]} 25. a3
{[%clk 0:01:35.4]} 25... Rec8 {[%clk 0:01:47.7]} 26. Nc6 {[%clk 0:01:28.9]}
26... Ra6 {[%clk 0:01:11.5]} 27. Kg2 {[%clk 0:01:12.1]} 27... Kg8 {[%clk
0:01:07.5]} 28. Rh1 {[%clk 0:01:07.9]} 28... Kf7 {[%clk 0:01:07.1]} 29. h3
{[%clk 0:01:07.4]} 29... gxh3+ {[%clk 0:01:07.2]} 30. Rxh3 {[%clk 0:01:06.9]}
30... Nc5 {[%clk 0:01:06.3]} 31. Rh7 {[%clk 0:01:01.7]} 31... Rxc6 {[%clk
0:00:45.2]} 32. dxc6 {[%clk 0:01:00.6]} 32... Nd3 {[%clk 0:00:45]} 33. c7 {[%clk
0:00:54.7]} 33... Ra8 {[%clk 0:00:44.8]} 34. Bxb6 {[%clk 0:00:53.7]} 34... d5
{[%clk 0:00:43.6]} 35. Qe3 {[%clk 0:00:46.5]} 35... Kg8 {[%clk 0:00:31.3]} 36.
Rxg7+ {[%clk 0:00:41.1]} 36... Qxg7 {[%clk 0:00:31.4]} 37. cxd5 {[%clk
0:00:39.9]} 37... Qc3 {[%clk 0:00:31.7]} 38. Qe2 {[%clk 0:00:34.5]} 38... Ra6
{[%clk 0:00:23]} 39. Be3 {[%clk 0:00:25.8]} 39... Qxc7 {[%clk 0:00:22.4]} 40. b4
{[%clk 0:00:25.7]} 40... axb4 {[%clk 0:00:22.3]} 41. axb4 {[%clk 0:00:25.7]}
41... Rd6 {[%clk 0:00:22.2]} 42. Qa2 {[%clk 0:00:24.1]} 42... Ra6 {[%clk
0:00:19.6]} 43. Qb3 {[%clk 0:00:21.4]} 43... Qd6 {[%clk 0:00:15.5]} 44. b5
{[%clk 0:00:19.4]} 44... Ra3 {[%clk 0:00:15.6]} 45. Qc4 {[%clk 0:00:19.8]} 45...
Ra8 {[%clk 0:00:11.3]} 46. b6 {[%clk 0:00:19.1]} 46... Rb8 {[%clk 0:00:07.2]}
47. b7 {[%clk 0:00:18.2]} 47... Qd7 {[%clk 0:00:07.7]} 48. d6+ {[%clk
0:00:17.7]} 48... Kf8 {[%clk 0:00:07.7]} 49. Qc7 {[%clk 0:00:16.9]} 1-0

[Event "*** SCC Grand Prix: Titled Tuesday Blitz"]
[Site "Chess.com"]
[Date "2020.08.25"]
[Round "8"]
[White "Guenplen"]
[Black "Mikhail_Golubev"]
[Result "1-0"]
[WhiteElo "2887"]
[BlackElo "2620"]
[TimeControl "180+1"]
[EndTime "11:37:01 PDT"]
[Termination "Guenplen won on time"]

1. d4 {[%clk 0:02:58.6]} 1... Nf6 {[%clk 0:02:59]} 2. Nf3 {[%clk 0:02:58.3]}
2... d6 {[%clk 0:02:58]} 3. Bf4 {[%clk 0:02:57.4]} 3... g6 {[%clk 0:02:57.2]} 4.
h3 {[%clk 0:02:57.9]} 4... Bg7 {[%clk 0:02:57.2]} 5. e3 {[%clk 0:02:58.5]} 5...
O-O {[%clk 0:02:56.1]} 6. c3 {[%clk 0:02:57.6]} 6... b6 {[%clk 0:02:48.5]} 7.
Be2 {[%clk 0:02:57.2]} 7... Bb7 {[%clk 0:02:48.7]} 8. O-O {[%clk 0:02:57.5]}
8... Nbd7 {[%clk 0:02:49.1]} 9. Bh2 {[%clk 0:02:57.7]} 9... Re8 {[%clk
0:02:47.4]} 10. a4 {[%clk 0:02:57.7]} 10... a6 {[%clk 0:02:44.6]} 11. Nfd2
{[%clk 0:02:51.6]} 11... e5 {[%clk 0:02:38]} 12. Bf3 {[%clk 0:02:51.9]} 12...
Bxf3 {[%clk 0:02:29]} 13. Qxf3 {[%clk 0:02:48.5]} 13... d5 {[%clk 0:02:26.6]}
14. Qd1 {[%clk 0:02:19.3]} 14... c5 {[%clk 0:02:25.1]} 15. Nf3 {[%clk
0:02:17.3]} 15... exd4 {[%clk 0:02:06.4]} 16. cxd4 {[%clk 0:02:15.8]} 16... cxd4
{[%clk 0:02:05.3]} 17. Nxd4 {[%clk 0:02:12.9]} 17... Ne4 {[%clk 0:02:00.7]} 18.
Nd2 {[%clk 0:01:58.8]} 18... Ndc5 {[%clk 0:01:59.8]} 19. N2f3 {[%clk 0:01:57.6]}
19... Rc8 {[%clk 0:01:55.9]} 20. Qe2 {[%clk 0:01:40.6]} 20... Qd7 {[%clk
0:01:40.7]} 21. Qd1 {[%clk 0:01:09.3]} 21... Ne6 {[%clk 0:01:26.6]} 22. Nxe6
{[%clk 0:01:02.2]} 22... Rxe6 {[%clk 0:01:24.9]} 23. Nd4 {[%clk 0:00:58.6]}
23... Ree8 {[%clk 0:01:18.1]} 24. Ra3 {[%clk 0:00:42.1]} 24... Bf8 {[%clk
0:01:06.2]} 25. Rd3 {[%clk 0:00:41]} 25... Nc5 {[%clk 0:01:04]} 26. Rd2 {[%clk
0:00:41.2]} 26... Ne4 {[%clk 0:01:01.6]} 27. Rc2 {[%clk 0:00:38.3]} 27... Rxc2
{[%clk 0:00:54.5]} 28. Qxc2 {[%clk 0:00:35.1]} 28... Rc8 {[%clk 0:00:54.9]} 29.
Qd1 {[%clk 0:00:32.7]} 29... Bg7 {[%clk 0:00:43.7]} 30. Bf4 {[%clk 0:00:27]}
30... h5 {[%clk 0:00:41.9]} 31. b3 {[%clk 0:00:25.9]} 31... Rc3 {[%clk
0:00:37.3]} 32. Qe2 {[%clk 0:00:23.2]} 32... Nc5 {[%clk 0:00:27.8]} 33. b4
{[%clk 0:00:19.8]} 33... Nd3 {[%clk 0:00:27.5]} 34. Bg3 {[%clk 0:00:08.6]} 34...
Qxa4 {[%clk 0:00:20.8]} 35. Qf3 {[%clk 0:00:05.9]} 35... Qd7 {[%clk 0:00:18]}
36. Qe2 {[%clk 0:00:03.1]} 36... b5 {[%clk 0:00:10.2]} 37. Nf3 {[%clk
0:00:03.3]} 37... Nxb4 {[%clk 0:00:08]} 38. Rd1 {[%clk 0:00:03.5]} 38... Rc2
{[%clk 0:00:07]} 39. Qe1 {[%clk 0:00:03.2]} 39... Qc6 {[%clk 0:00:06.4]} 40. Ne5
{[%clk 0:00:03.2]} 40... Qc3 {[%clk 0:00:03.5]} 41. Nf3 {[%clk 0:00:02.3]} 41...
Qxe1+ {[%clk 0:00:03.1]} 42. Rxe1 {[%clk 0:00:03.2]} 42... a5 {[%clk 0:00:03.3]}
43. Rb1 {[%clk 0:00:02.8]} 1-0

[Event "*** SCC Grand Prix: Titled Tuesday Blitz"]
[Site "Chess.com"]
[Date "2020.08.25"]
[Round "8"]
[White "Gabrielian_Artur"]
[Black "TwentyHoursADay"]
[Result "1-0"]
[WhiteElo "2708"]
[BlackElo "2480"]
[TimeControl "180+1"]
[EndTime "11:37:01 PDT"]
[Termination "Gabrielian_Artur won by checkmate"]

1. e4 {[%clk 0:03:00.9]} 1... c5 {[%clk 0:03:00]} 2. Nc3 {[%clk 0:03:00.7]} 2...
a6 {[%clk 0:03:00]} 3. g3 {[%clk 0:02:59.7]} 3... b5 {[%clk 0:03:00.1]} 4. Bg2
{[%clk 0:03:00]} 4... Bb7 {[%clk 0:03:00.3]} 5. Nge2 {[%clk 0:03:00.2]} 5... e6
{[%clk 0:02:59.6]} 6. O-O {[%clk 0:03:00.2]} 6... h5 {[%clk 0:03:00]} 7. h3
{[%clk 0:02:59.9]} 7... h4 {[%clk 0:03:00.2]} 8. g4 {[%clk 0:03:00.1]} 8... Nc6
{[%clk 0:03:00.7]} 9. d3 {[%clk 0:02:48.5]} 9... Nge7 {[%clk 0:02:55.8]} 10. Be3
{[%clk 0:02:42]} 10... Ng6 {[%clk 0:02:54.4]} 11. f4 {[%clk 0:02:39.8]} 11...
Qc7 {[%clk 0:02:54]} 12. Qd2 {[%clk 0:02:16]} 12... Be7 {[%clk 0:02:50.7]} 13.
a3 {[%clk 0:02:13.3]} 13... f6 {[%clk 0:02:10.4]} 14. Rae1 {[%clk 0:02:11.5]}
14... O-O-O {[%clk 0:02:07.7]} 15. Kh1 {[%clk 0:01:38]} 15... Kb8 {[%clk
0:02:06]} 16. Nd1 {[%clk 0:01:34.1]} 16... d5 {[%clk 0:02:04.1]} 17. exd5 {[%clk
0:01:33.8]} 17... exd5 {[%clk 0:02:04.3]} 18. Bg1 {[%clk 0:01:33.9]} 18... d4
{[%clk 0:02:00.4]} 19. Nf2 {[%clk 0:01:32.6]} 19... Ka8 {[%clk 0:01:53.6]} 20.
Bh2 {[%clk 0:01:31]} 20... Rhe8 {[%clk 0:01:47]} 21. a4 {[%clk 0:01:24.4]} 21...
b4 {[%clk 0:01:32.8]} 22. Ne4 {[%clk 0:01:24.6]} 22... Bf8 {[%clk 0:01:21]} 23.
f5 {[%clk 0:01:25]} 23... Nge5 {[%clk 0:01:20.8]} 24. Nf4 {[%clk 0:01:25.1]}
24... Bc8 {[%clk 0:01:13.5]} 25. Qf2 {[%clk 0:01:20.5]} 25... Ka7 {[%clk
0:01:07.8]} 26. b3 {[%clk 0:01:19.4]} 26... Be7 {[%clk 0:01:00.7]} 27. Qxh4
{[%clk 0:01:18.7]} 27... Rh8 {[%clk 0:01:00.9]} 28. Qf2 {[%clk 0:01:16.5]} 28...
Rh7 {[%clk 0:00:57.9]} 29. Ng6 {[%clk 0:01:08.4]} 29... Bb7 {[%clk 0:00:49.6]}
30. g5 {[%clk 0:00:57.8]} 30... Qd7 {[%clk 0:00:40.2]} 31. Nxe7 {[%clk
0:00:53.7]} 31... Qxe7 {[%clk 0:00:38.9]} 32. g6 {[%clk 0:00:48]} 32... Rh5
{[%clk 0:00:34.1]} 33. Kg1 {[%clk 0:00:43.2]} 33... Rdh8 {[%clk 0:00:33.8]} 34.
Nd2 {[%clk 0:00:41]} 34... Bc8 {[%clk 0:00:31.4]} 35. Bxc6 {[%clk 0:00:37.7]}
35... Rxh3 {[%clk 0:00:27.5]} 36. Bg3 {[%clk 0:00:27]} 36... Bxf5 {[%clk
0:00:19.7]} 37. Bg2 {[%clk 0:00:25.5]} 37... Bc8 {[%clk 0:00:13.2]} 38. Nc4
{[%clk 0:00:24.7]} 38... Bb7 {[%clk 0:00:11.3]} 39. Bxh3 {[%clk 0:00:17.5]}
39... Rxh3 {[%clk 0:00:10.8]} 40. Bh2 {[%clk 0:00:17.2]} 40... Qe6 {[%clk
0:00:08.1]} 41. Qf4 {[%clk 0:00:16.2]} 41... Rh6 {[%clk 0:00:03.5]} 42. Nxe5
{[%clk 0:00:15.4]} 42... fxe5 {[%clk 0:00:03.2]} 43. Rxe5 {[%clk 0:00:14.5]}
43... Rxg6+ {[%clk 0:00:03.3]} 44. Kf2 {[%clk 0:00:14.8]} 44... Rg2+ {[%clk
0:00:03.4]} 45. Ke1 {[%clk 0:00:15.3]} 45... Qh3 {[%clk 0:00:02.8]} 46. Re7
{[%clk 0:00:13]} 46... Rxh2 {[%clk 0:00:01.3]} 47. Rxb7+ {[%clk 0:00:13]} 47...
Kxb7 {[%clk 0:00:02.2]} 48. Qe4+ {[%clk 0:00:12.7]} 48... Kc8 {[%clk 0:00:01.5]}
49. Rf8+ {[%clk 0:00:12.7]} 49... Kd7 {[%clk 0:00:02]} 50. Rf7+ {[%clk
0:00:13.2]} 50... Kd8 {[%clk 0:00:01.8]} 51. Qe7+ {[%clk 0:00:13.3]} 51... Kc8
{[%clk 0:00:01.8]} 52. Qc7# {[%clk 0:00:13.9]} 1-0

[Event "*** SCC Grand Prix: Titled Tuesday Blitz"]
[Site "Chess.com"]
[Date "2020.08.25"]
[Round "8"]
[White "Phenix2k"]
[Black "1977Ivan"]
[Result "1-0"]
[WhiteElo "2169"]
[BlackElo "2679"]
[TimeControl "180+1"]
[EndTime "11:37:02 PDT"]
[Termination "Phenix2k won by resignation"]

1. d4 {[%clk 0:03:00.9]} 1... Nf6 {[%clk 0:02:59.1]} 2. c4 {[%clk 0:03:00.6]}
2... Nc6 {[%clk 0:02:59.6]} 3. Nf3 {[%clk 0:03:00.1]} 3... e6 {[%clk 0:02:59.5]}
4. Nc3 {[%clk 0:03:00]} 4... Bb4 {[%clk 0:02:59]} 5. Qc2 {[%clk 0:02:58.8]} 5...
d6 {[%clk 0:02:52.3]} 6. Bd2 {[%clk 0:02:58.8]} 6... a5 {[%clk 0:02:48.4]} 7. e3
{[%clk 0:02:52]} 7... O-O {[%clk 0:02:44.5]} 8. Bd3 {[%clk 0:02:47.3]} 8... e5
{[%clk 0:02:19.3]} 9. d5 {[%clk 0:02:41.3]} 9... Ne7 {[%clk 0:01:48.9]} 10. O-O
{[%clk 0:02:36.8]} 10... h6 {[%clk 0:01:48.5]} 11. a3 {[%clk 0:02:32.4]} 11...
Bc5 {[%clk 0:01:44.6]} 12. Rfb1 {[%clk 0:02:27.6]} 12... Bd7 {[%clk 0:01:42.8]}
13. b3 {[%clk 0:02:19.6]} 13... Qe8 {[%clk 0:01:41.5]} 14. Be1 {[%clk
0:02:05.6]} 14... Kh8 {[%clk 0:01:40]} 15. Nd2 {[%clk 0:02:00.9]} 15... Nh5
{[%clk 0:01:14.2]} 16. Nce4 {[%clk 0:01:48.8]} 16... Ba7 {[%clk 0:01:13.4]} 17.
Ng3 {[%clk 0:01:47]} 17... f5 {[%clk 0:01:11.8]} 18. b4 {[%clk 0:01:37.4]} 18...
f4 {[%clk 0:01:07.6]} 19. Nxh5 {[%clk 0:01:17.4]} 19... fxe3 {[%clk 0:01:06.5]}
20. Ng3 {[%clk 0:01:12.7]} 20... exf2+ {[%clk 0:01:05.7]} 21. Kh1 {[%clk
0:01:08.1]} 21... fxe1=Q+ {[%clk 0:01:00.4]} 22. Rxe1 {[%clk 0:01:06.9]} 22...
Bd4 {[%clk 0:00:54.6]} 23. Rab1 {[%clk 0:01:03.5]} 23... axb4 {[%clk 0:00:55]}
24. axb4 {[%clk 0:01:02.5]} 24... Ba4 {[%clk 0:00:44.5]} 25. Nb3 {[%clk
0:01:01.6]} 25... Bxb3 {[%clk 0:00:42.7]} 26. Rxb3 {[%clk 0:00:57.2]} 26... Rf2
{[%clk 0:00:41.4]} 27. Qd1 {[%clk 0:00:51.9]} 27... Raa2 {[%clk 0:00:37]} 28.
Be4 {[%clk 0:00:47.2]} 28... Qf7 {[%clk 0:00:31.6]} 29. Qg4 {[%clk 0:00:42.5]}
29... Ng8 {[%clk 0:00:16.7]} 30. Rbb1 {[%clk 0:00:31.2]} 30... Rf4 {[%clk
0:00:15.7]} 31. Qe6 {[%clk 0:00:21.2]} 31... Qf8 {[%clk 0:00:13.2]} 32. Nf5
{[%clk 0:00:14.7]} 32... Nf6 {[%clk 0:00:12.7]} 33. Ng3 {[%clk 0:00:08.1]} 33...
Nxe4 {[%clk 0:00:10.8]} 34. Nxe4 {[%clk 0:00:07.7]} 34... Rxe4 {[%clk
0:00:08.7]} 35. Rxe4 {[%clk 0:00:06.4]} 35... Qf2 {[%clk 0:00:08.3]} 36. Qc8+
{[%clk 0:00:05.1]} 36... Kh7 {[%clk 0:00:07.9]} 37. Qg4 {[%clk 0:00:04.8]} 37...
Rd2 {[%clk 0:00:02.6]} 38. Ree1 {[%clk 0:00:04.4]} 38... Rd3 {[%clk 0:00:02.5]}
39. Qe4+ {[%clk 0:00:04.5]} 39... Qf5 {[%clk 0:00:02]} 40. Qxf5+ {[%clk
0:00:03.9]} 40... Kg8 {[%clk 0:00:02.8]} 41. Qxd3 {[%clk 0:00:03.9]} 41... e4
{[%clk 0:00:02.5]} 42. Qxe4 {[%clk 0:00:04.2]} 42... c5 {[%clk 0:00:02.9]} 43.
Qe6+ {[%clk 0:00:04.4]} 43... Kh7 {[%clk 0:00:03.5]} 44. bxc5 {[%clk 0:00:04.8]}
44... g6 {[%clk 0:00:04.2]} 45. Qe4 {[%clk 0:00:04.8]} 45... Bg7 {[%clk
0:00:05]} 46. Qe7 {[%clk 0:00:05]} 46... h5 {[%clk 0:00:05.7]} 47. Qf7 {[%clk
0:00:04.9]} 47... dxc5 {[%clk 0:00:06.6]} 48. Re7 {[%clk 0:00:04.8]} 1-0

[Event "*** SCC Grand Prix: Titled Tuesday Blitz"]
[Site "Chess.com"]
[Date "2020.08.25"]
[Round "8"]
[White "alexgo05"]
[Black "MestreSoares"]
[Result "0-1"]
[WhiteElo "2328"]
[BlackElo "2154"]
[TimeControl "180+1"]
[EndTime "11:37:02 PDT"]
[Termination "MestreSoares won by resignation"]

1. e4 {[%clk 0:03:00.9]} 1... Nf6 {[%clk 0:02:59]} 2. e5 {[%clk 0:03:00.7]} 2...
Nd5 {[%clk 0:02:59.1]} 3. d4 {[%clk 0:03:00.6]} 3... d6 {[%clk 0:02:58.5]} 4.
Nf3 {[%clk 0:03:01]} 4... Bg4 {[%clk 0:02:57.6]} 5. c4 {[%clk 0:02:57.2]} 5...
Nb6 {[%clk 0:02:57]} 6. Be2 {[%clk 0:02:57.1]} 6... e6 {[%clk 0:02:56.9]} 7. Nc3
{[%clk 0:02:54.7]} 7... Be7 {[%clk 0:02:57.3]} 8. h3 {[%clk 0:02:44.4]} 8...
Bxf3 {[%clk 0:02:53.5]} 9. Bxf3 {[%clk 0:02:42.7]} 9... d5 {[%clk 0:02:52]} 10.
c5 {[%clk 0:02:31.6]} 10... Nc8 {[%clk 0:02:51.2]} 11. Be3 {[%clk 0:02:31.5]}
11... O-O {[%clk 0:02:50.4]} 12. O-O {[%clk 0:02:30.9]} 12... Nc6 {[%clk
0:02:49.5]} 13. a3 {[%clk 0:02:30.6]} 13... f6 {[%clk 0:02:47.5]} 14. exf6
{[%clk 0:02:28.4]} 14... Bxf6 {[%clk 0:02:47.1]} 15. b4 {[%clk 0:02:28.8]} 15...
a6 {[%clk 0:02:46.7]} 16. Re1 {[%clk 0:02:26.5]} 16... N8e7 {[%clk 0:02:45.5]}
17. Bg4 {[%clk 0:02:15]} 17... Nf5 {[%clk 0:02:38.3]} 18. Bxf5 {[%clk
0:02:15.2]} 18... exf5 {[%clk 0:02:36.1]} 19. Ne2 {[%clk 0:02:15.9]} 19... Qd7
{[%clk 0:02:33.4]} 20. Qd2 {[%clk 0:02:13.9]} 20... Rae8 {[%clk 0:02:32.3]} 21.
a4 {[%clk 0:02:05.5]} 21... g6 {[%clk 0:02:26.1]} 22. b5 {[%clk 0:02:02.9]}
22... axb5 {[%clk 0:02:26.3]} 23. axb5 {[%clk 0:02:03.8]} 23... Nd8 {[%clk
0:02:26.8]} 24. Qd3 {[%clk 0:01:51.8]} 24... c6 {[%clk 0:02:25]} 25. b6 {[%clk
0:01:50.2]} 25... Re7 {[%clk 0:02:17.9]} 26. Bf4 {[%clk 0:01:31.2]} 26... Rfe8
{[%clk 0:02:14.4]} 27. Kf1 {[%clk 0:01:31.1]} 27... Re4 {[%clk 0:01:54]} 28. f3
{[%clk 0:01:22.4]} 28... R4e6 {[%clk 0:01:47.8]} 29. Ra2 {[%clk 0:01:00.8]}
29... Nf7 {[%clk 0:01:32.7]} 30. Rea1 {[%clk 0:00:58]} 30... h6 {[%clk
0:01:13.9]} 31. Ra7 {[%clk 0:00:54.5]} 31... Rxe2 {[%clk 0:01:09.4]} 32. Qxe2
{[%clk 0:00:54.6]} 32... Rxe2 {[%clk 0:01:08.5]} 33. Kxe2 {[%clk 0:00:55.5]}
33... Bxd4 {[%clk 0:01:02.7]} 34. Ra8+ {[%clk 0:00:55.8]} 34... Kh7 {[%clk
0:01:01.1]} 35. R1a7 {[%clk 0:00:55.2]} 35... Bxc5 {[%clk 0:00:58.2]} 36. Rb8
{[%clk 0:00:54.9]} 36... g5 {[%clk 0:00:52.5]} 37. Rbxb7 {[%clk 0:00:53.5]}
37... Qe6+ {[%clk 0:00:51.4]} 38. Kd1 {[%clk 0:00:45.7]} 38... gxf4 {[%clk
0:00:43.2]} 39. Rxf7+ {[%clk 0:00:45]} 39... Kg6 {[%clk 0:00:43.5]} 40. Rg7+
{[%clk 0:00:21.5]} 40... Kh5 {[%clk 0:00:41.7]} 41. Raf7 {[%clk 0:00:16.1]}
41... Bxb6 {[%clk 0:00:31.9]} 42. Re7 {[%clk 0:00:16.6]} 42... Qf6 {[%clk
0:00:28]} 43. Rgf7 {[%clk 0:00:16.8]} 43... Qa1+ {[%clk 0:00:23.3]} 44. Kc2
{[%clk 0:00:16.4]} 44... Qa2+ {[%clk 0:00:22.9]} 45. Kd3 {[%clk 0:00:16.3]}
45... Qb1+ {[%clk 0:00:22.4]} 46. Kc3 {[%clk 0:00:15.8]} 46... Be3 {[%clk
0:00:20.5]} 47. Rxf5+ {[%clk 0:00:15.3]} 47... Qxf5 {[%clk 0:00:19.1]} 48. Kb4
{[%clk 0:00:15.6]} 48... c5+ {[%clk 0:00:18.1]} 49. Kb5 {[%clk 0:00:15.8]} 49...
c4 {[%clk 0:00:17.3]} 50. Kc6 {[%clk 0:00:16.1]} 50... d4 {[%clk 0:00:17.1]} 51.
Kd6 {[%clk 0:00:16.5]} 51... c3 {[%clk 0:00:16]} 52. Rc7 {[%clk 0:00:15.7]}
52... c2 {[%clk 0:00:14.6]} 53. Ke7 {[%clk 0:00:14.9]} 53... Qh7+ {[%clk
0:00:12.8]} 54. Kd8 {[%clk 0:00:14.8]} 54... Qxc7+ {[%clk 0:00:13.2]} 55. Kxc7
{[%clk 0:00:15.7]} 0-1

[Event "*** SCC Grand Prix: Titled Tuesday Blitz"]
[Site "Chess.com"]
[Date "2020.08.25"]
[Round "8"]
[White "chenxiaoyuer"]
[Black "Nf3c5"]
[Result "1-0"]
[WhiteElo "2455"]
[BlackElo "2545"]
[TimeControl "180+1"]
[EndTime "11:37:03 PDT"]
[Termination "chenxiaoyuer won on time"]

1. e4 {[%clk 0:03:00.9]} 1... c5 {[%clk 0:02:59.1]} 2. Nf3 {[%clk 0:03:00.2]}
2... Nc6 {[%clk 0:02:52.2]} 3. d4 {[%clk 0:03:00.1]} 3... cxd4 {[%clk 0:02:52]}
4. Nxd4 {[%clk 0:03:01]} 4... Nf6 {[%clk 0:02:52.5]} 5. Nc3 {[%clk 0:03:01]}
5... e5 {[%clk 0:02:52.5]} 6. Ndb5 {[%clk 0:03:01.1]} 6... d6 {[%clk 0:02:52.8]}
7. Bg5 {[%clk 0:03:01.3]} 7... a6 {[%clk 0:02:53.3]} 8. Na3 {[%clk 0:03:01.6]}
8... b5 {[%clk 0:02:53.7]} 9. Nd5 {[%clk 0:03:02]} 9... Be7 {[%clk 0:02:53.7]}
10. Bxf6 {[%clk 0:03:02.3]} 10... Bxf6 {[%clk 0:02:53.4]} 11. c4 {[%clk
0:03:02.9]} 11... b4 {[%clk 0:02:51.3]} 12. Nc2 {[%clk 0:03:02.9]} 12... O-O
{[%clk 0:02:52.1]} 13. g3 {[%clk 0:03:02.2]} 13... Rb8 {[%clk 0:02:48.5]} 14. b3
{[%clk 0:02:58.3]} 14... Bg5 {[%clk 0:02:48.2]} 15. Bg2 {[%clk 0:02:57.8]} 15...
a5 {[%clk 0:02:39.3]} 16. O-O {[%clk 0:02:56.7]} 16... Ne7 {[%clk 0:02:37.3]}
17. Nde3 {[%clk 0:02:29.6]} 17... Be6 {[%clk 0:02:12.8]} 18. h4 {[%clk
0:02:05.2]} 18... Bh6 {[%clk 0:02:08.3]} 19. Ng4 {[%clk 0:01:55.4]} 19... Bxg4
{[%clk 0:01:44.2]} 20. Qxg4 {[%clk 0:01:56.3]} 20... Qc7 {[%clk 0:01:42.6]} 21.
Rad1 {[%clk 0:01:53.9]} 21... a4 {[%clk 0:01:38.3]} 22. f4 {[%clk 0:01:48.7]}
22... axb3 {[%clk 0:01:37.4]} 23. axb3 {[%clk 0:01:47.7]} 23... Ra8 {[%clk
0:01:26.5]} 24. fxe5 {[%clk 0:01:25.1]} 24... dxe5 {[%clk 0:01:23.7]} 25. Rd7
{[%clk 0:01:10.8]} 25... Qc5+ {[%clk 0:01:18.3]} 26. Kh2 {[%clk 0:01:07.3]}
26... Ra2 {[%clk 0:01:14.1]} 27. Ne1 {[%clk 0:01:05.6]} 27... Ra7 {[%clk
0:00:59.2]} 28. Nd3 {[%clk 0:01:00.2]} 28... Qe3 {[%clk 0:00:55.8]} 29. Nxe5
{[%clk 0:00:55.4]} 29... Ng6 {[%clk 0:00:39]} 30. Nxg6 {[%clk 0:00:18.2]} 30...
hxg6 {[%clk 0:00:33.5]} 31. Rf3 {[%clk 0:00:17.9]} 31... Qb6 {[%clk 0:00:30.1]}
32. Rd5 {[%clk 0:00:16.6]} 32... Ra1 {[%clk 0:00:27.8]} 33. Kh3 {[%clk
0:00:16.5]} 33... Qg1 {[%clk 0:00:23.7]} 34. Qd7 {[%clk 0:00:16]} 34... Ra2
{[%clk 0:00:22.5]} 35. Bf1 {[%clk 0:00:09.9]} 35... Rh2+ {[%clk 0:00:12.1]} 36.
Kg4 {[%clk 0:00:09.2]} 36... Qb6 {[%clk 0:00:06.3]} 37. Rd6 {[%clk 0:00:08.6]}
37... Qc5 {[%clk 0:00:05.8]} 38. Rd5 {[%clk 0:00:06.1]} 38... Qb6 {[%clk
0:00:05.8]} 39. Qd6 {[%clk 0:00:05.5]} 39... Qb7 {[%clk 0:00:05.3]} 40. Qd7
{[%clk 0:00:05.2]} 40... Qb8 {[%clk 0:00:05.4]} 41. c5 {[%clk 0:00:05]} 41...
Qa7 {[%clk 0:00:05.4]} 42. Qxa7 {[%clk 0:00:04.7]} 42... f5+ {[%clk 0:00:04.8]}
43. exf5 {[%clk 0:00:04.8]} 43... gxf5+ {[%clk 0:00:05.7]} 44. Rdxf5 {[%clk
0:00:05.7]} 1-0